fUSD/lending_fUSD_20240520
["ID","MTS","AMOUNT","RATE_DAILY","PERIOD"]
[327593686,1716246684488,-500.0,0.00039178,6]
[327593687,1716246684497,-677.98,0.00039178,6]
[327593688,1716246684507,-882.42,0.00039178,6]
[327593689,1716246684516,-500.0,0.00039178,6]
[327593690,1716246684525,-612.35196976,0.00039178,6]
[327593691,1716246684536,-3113.46,0.00039178,6]
[327593692,1716246684545,-404.31922414,0.00039178,6]
[327593693,1716246684555,-500.0,0.00039178,6]
[327593694,1716246684565,-4139.38,0.00039178,6]
[327593695,1716246684575,-500.0,0.00039178,6]
[327593696,1716246684584,-500.0,0.00039178,6]
[327593697,1716246684594,-500.0,0.00039178,6]
[327593698,1716246684603,-760.9,0.00039178,6]
[327593699,1716246684612,-1940.07,0.00039178,6]
[327593700,1716246684621,-956.04,0.00039178,6]
[327593701,1716246684630,-1757.53,0.00039178,6]
[327593702,1716246684639,-753.42,0.00039178,6]
[327593703,1716246684649,-500.0,0.00039178,6]
[327593704,1716246684658,-500.0,0.00039178,6]
[327593705,1716246684667,-629.59,0.00039178,6]
[327593706,1716246684677,-671.07,0.00039178,6]
[327593707,1716246684686,-14738.93,0.00039178,6]
[327593708,1716246684695,-1023.5,0.00039178,6]
[327593709,1716246684704,-2171.15,0.00039178,6]
[327593710,1716246684713,-3863.43,0.00039178,6]
[327593711,1716246684722,-500.0,0.00039178,6]
[327593712,1716246684731,-500.0,0.00039178,6]
[327593713,1716246684741,-6770.41,0.00039178,6]
[327593714,1716246684750,-1544.75,0.00039178,6]
[327593715,1716246684759,-620.75,0.00039178,6]
[327593716,1716246684768,-781.34,0.00039178,6]
[327593717,1716246684777,-2604.97,0.00039178,6]
[327593718,1716246684786,-676.73,0.00039178,6]
[327593719,1716246684795,-500.0,0.00039178,6]
[327593720,1716246684804,-500.0,0.00039178,6]
[327593721,1716246684814,-649.57,0.00039178,6]
[327593722,1716246684823,-2650.42,0.00039178,6]
[327593723,1716246684832,-500.0,0.00039178,6]
[327593724,1716246684842,-1701.73,0.00039178,6]
[327593725,1716246684851,-578.39516514,0.00039178,6]
[327593726,1716246684860,-500.0,0.00039178,6]
[327593727,1716246684869,-859.441913,0.00039178,14]
[327593728,1716246684878,-859.441913,0.00039178,14]
[327593729,1716246684887,-500.0,0.00039178,6]
[327593730,1716246684896,-500.0,0.00039178,6]
[327593731,1716246684905,-3097.94,0.00039178,6]
[327593732,1716246684915,-556.28,0.00039178,6]
[327593733,1716246684924,-742.83,0.00039178,6]
[327593734,1716246684933,-756.34,0.00039178,6]
[327593735,1716246684942,-500.0,0.00039178,6]
[327593736,1716246684952,-859.441913,0.00039178,14]
[327593737,1716246684966,-1017.67,0.00039178,6]
[327593738,1716246684975,-1042.79,0.00039178,6]
[327593739,1716246684985,-859.441913,0.00039178,14]
[327593740,1716246684994,-3366.33,0.00039178,6]
[327593741,1716246685003,-2045.11,0.00039178,6]
[327593742,1716246685013,-500.0,0.00039178,6]
[327593743,1716246685023,-1624.86,0.00039178,6]
[327593744,1716246685032,-21069.99,0.00039178,6]
[327593745,1716246685043,-1520.85,0.00039178,6]
[327593746,1716246685053,-500.0,0.00039178,6]
[327593747,1716246685063,-11585.55,0.00039178,6]
[327593748,1716246685073,-813.72,0.00039178,6]
[327593749,1716246685082,-1180.21,0.00039178,6]
[327593750,1716246685092,-1659.83,0.00039178,6]
[327593751,1716246685102,-500.0,0.00039178,6]
[327593752,1716246685112,-609.30750716,0.00039178,6]
[327593753,1716246685122,-1121.26,0.00039178,6]
[327593754,1716246685132,-500.0,0.00039178,6]
[327593755,1716246685142,-500.0,0.00039178,6]
[327593756,1716246685153,-2953.4,0.00039178,6]
[327593757,1716246685163,-2205.27,0.00039178,6]
[327593758,1716246685174,-686.04,0.00039178,6]
[327593759,1716246685184,-3219.62,0.00039178,6]
[327593760,1716246685194,-8442.33,0.00039178,6]
[327593761,1716246685204,-769.66,0.00039178,6]
[327593762,1716246685213,-564.0,0.00039178,6]
[327593763,1716246685223,-530.63,0.00039178,6]
[327593764,1716246685232,-670.88,0.00039178,6]
[327593765,1716246685241,-1259.58,0.00039178,6]
[327593766,1716246685251,-330.21820744,0.00039178,6]
[327593767,1716246685261,-1932.37,0.00039178,6]
[327593768,1716246685272,-500.0,0.00039178,6]
[327593769,1716246685283,-8812.96,0.00039178,6]
[327593770,1716246685292,-2195.53,0.00039178,6]
[327593771,1716246685302,-1283.64,0.00039178,6]
[327593772,1716246685311,-9543.04,0.00039178,6]
[327593773,1716246685321,-555.84,0.00039178,6]
[327593774,1716246685330,-574.5,0.00039178,6]
[327593775,1716246685340,-2230.85,0.00039178,6]
[327593776,1716246685349,-500.0,0.00039178,6]
[327593777,1716246685360,-653.4,0.00039178,6]
[327593778,1716246685370,-1507.66,0.00039178,6]
[327593779,1716246685380,-500.0,0.00039178,6]
[327593780,1716246685390,-942.31,0.00039178,6]
[327593781,1716246685399,-500.0,0.00039178,6]
[327593782,1716246685408,-991.95,0.00039178,6]
[327593783,1716246685417,-3681.57,0.00039178,6]
[327593784,1716246685427,-500.0,0.00039178,6]
[327593785,1716246685436,-500.0,0.00039178,6]
[327593786,1716246685446,-500.0,0.00039178,6]
[327593787,1716246685456,-1081.9,0.00039178,6]
[327593788,1716246685466,-500.0,0.00039178,6]
[327593789,1716246685475,-285.4376656,0.00039178,6]
[327593790,1716246685484,-8066.57,0.00039178,6]
[327593791,1716246685494,-1589.03,0.00039178,6]
[327593792,1716246685503,-524.22,0.00039178,6]
[327593793,1716246685512,-1173.17,0.00039178,6]
[327593794,1716246685522,-1448.33,0.00039178,6]
[327593795,1716246685531,-1202.8,0.00039178,6]
[327593796,1716246685542,-2792.2,0.00039178,6]
[327593797,1716246685551,-500.0,0.00039178,6]
[327593798,1716246685560,-500.0,0.00039178,6]
[327593799,1716246685569,-500.0,0.00039178,6]
[327593800,1716246685578,-500.0,0.00039178,6]
[327593801,1716246685774,-2599.42,0.00039178,6]
[327593802,1716246685785,-1372.08,0.00039178,6]
[327593803,1716246685795,-500.0,0.00039178,6]
[327593804,1716246685804,-1311.61,0.00039178,6]
[327593805,1716246685815,-2197.36,0.00039178,6]
[327593806,1716246685823,-4115.35,0.00039178,6]
[327593807,1716246685832,-500.0,0.00039178,6]
[327593808,1716246685842,-500.0,0.00039178,6]
[327593809,1716246685851,-500.0,0.00039178,6]
[327593810,1716246685861,-562.82,0.00039178,6]
[327593811,1716246685870,-500.0,0.00039178,6]
[327593812,1716246685879,-500.0,0.00039178,6]
[327593813,1716246685888,-500.0,0.00039178,6]
[327593814,1716246685897,-500.0,0.00039178,6]
[327593815,1716246685907,-1248.45,0.00039178,6]
[327593816,1716246685916,-818.38,0.00039178,6]
[327593817,1716246685925,-551.38,0.00039178,6]
[327593818,1716246685935,-889.73,0.00039178,6]
[327593819,1716246685945,-1166.82,0.00039178,6]
[327593820,1716246685954,-4782.56,0.00039178,6]
[327593821,1716246685963,-2760.24,0.00039178,6]
[327593822,1716246685972,-500.0,0.00039178,6]
[327593823,1716246685981,-3451.78,0.00039178,6]
[327593824,1716246685991,-804.28,0.00039178,6]
[327593825,1716246686000,-7172.29,0.00039178,6]
[327593826,1716246686010,-806.25,0.00039178,6]
[327593827,1716246686020,-500.0,0.00039178,6]
[327593828,1716246686030,-500.0,0.00039178,6]
[327593829,1716246686040,-500.0,0.00039178,6]
[327593830,1716246686049,-2227.02,0.00039178,6]
[327593831,1716246686058,-1648.04,0.00039178,6]
[327593832,1716246686067,-1451.09,0.00039178,6]
[327593833,1716246686076,-3539.72,0.00039178,6]
[327593834,1716246686085,-500.0,0.00039178,6]
[327593835,1716246686095,-500.0,0.00039178,6]
[327593836,1716246686104,-1260.01,0.00039178,6]
[327593837,1716246686114,-3810.44,0.00039178,6]
[327593838,1716246686123,-1127.1,0.00039178,6]
[327593839,1716246686132,-500.0,0.00039178,6]
[327593840,1716246686141,-2724.72,0.00039178,6]
[327593841,1716246686150,-1327.78,0.00039178,6]
[327593842,1716246686159,-500.0,0.00039178,6]
[327593843,1716246686169,-500.0,0.00039178,6]
[327593844,1716246686178,-3095.64,0.00039178,6]
[327593845,1716246686187,-500.0,0.00039178,6]
[327593846,1716246686196,-500.0,0.00039178,6]
[327593847,1716246686205,-2294.4,0.00039178,6]
[327593848,1716246686214,-500.0,0.00039178,6]
[327593849,1716246686223,-3662.22,0.00039178,6]
[327593850,1716246686232,-500.0,0.00039178,6]
[327593851,1716246686241,-500.0,0.00039178,6]
[327593852,1716246686250,-2344.33,0.00039178,6]
[327593853,1716246686259,-500.0,0.00039178,6]
[327593854,1716246686269,-2919.45,0.00039178,6]
[327593855,1716246686281,-12060.74,0.00039178,6]
[327593856,1716246686293,-500.0,0.00039178,6]
[327593857,1716246686303,-2053.36,0.00039178,6]
[327593858,1716246686313,-5062.07,0.00039178,6]
[327593859,1716246686323,-668.13,0.00039178,6]
[327593860,1716246686332,-1665.69,0.00039178,6]
[327593861,1716246686341,-818.94,0.00039178,6]
[327593862,1716246686350,-500.0,0.00039178,6]
[327593863,1716246686361,-2979.18,0.00039178,6]
[327593864,1716246686371,-2276.61,0.00039178,6]
[327593865,1716246686380,-832.65,0.00039178,6]
[327593866,1716246686389,-1202.24,0.00039178,6]
[327593867,1716246686398,-500.0,0.00039178,6]
[327593868,1716246686408,-500.0,0.00039178,6]
[327593869,1716246686417,-547.43,0.00039178,6]
[327593870,1716246686426,-4292.85,0.00039178,6]
[327593871,1716246686435,-2981.46,0.00039178,6]
[327593872,1716246686444,-500.0,0.00039178,6]
[327593873,1716246686453,-511.68,0.00039178,6]
[327593874,1716246686462,-3960.48,0.00039178,6]
[327593875,1716246686471,-648.75,0.00039178,6]
[327593876,1716246686480,-1633.91,0.00039178,6]
[327593877,1716246686489,-500.0,0.00039178,6]
[327593878,1716246686498,-1623.31,0.00039178,6]
[327593879,1716246686508,-500.0,0.00039178,6]
[327593880,1716246686517,-500.0,0.00039178,6]
[327593881,1716246686525,-3725.21,0.00039178,6]
[327593882,1716246686535,-2927.56,0.00039178,6]
[327593883,1716246686544,-844.95,0.00039178,6]
[327593884,1716246686553,-3947.76,0.00039178,6]
[327593885,1716246686562,-500.0,0.00039178,6]
[327593886,1716246686571,-1350.66,0.00039178,6]
[327593887,1716246686580,-796.37,0.00039178,6]
[327593888,1716246686589,-566.76,0.00039178,6]
[327593889,1716246686599,-151.0,0.00039178,14]
[327593890,1716246686608,-3114.22,0.00039178,6]
[327593891,1716246686617,-151.0,0.00039178,14]
[327593892,1716246686626,-1248.3,0.00039178,6]
[327593893,1716246686635,-568.24,0.00039178,6]
[327593894,1716246686643,-500.0,0.00039178,6]
[327593895,1716246686652,-500.0,0.00039178,6]
[327593896,1716246686661,-500.0,0.00039178,6]
[327593897,1716246686670,-500.0,0.00039178,6]
[327593898,1716246686679,-1010.42,0.00039178,6]
[327593899,1716246686689,-528.38,0.00039178,6]
[327593900,1716246686698,-500.0,0.00039178,6]
[327593901,1716246686707,-500.0,0.00039178,6]
[327593902,1716246686716,-150.0,0.000392,10]
[327593903,1716246686725,-6460.24858826,0.00039215,2]
[327593904,1716246686735,-150.0,0.00039221,2]
[327593905,1716246686744,-150.0,0.00039287,2]
[327593906,1716246686753,-317.63013013,0.00039298,4]
[327593907,1716246686762,-226.65825705,0.00039298,4]
[327593908,1716246686771,-887.34537112,0.00039298,4]
[327593909,1716246686781,-261.55411948,0.00039299,4]
[327593910,1716246686792,-204.44716233,0.00039299,4]
[327593911,1716246686802,-157.0188053,0.00039299,4]
[327593912,1716246686811,-184.8662877,0.000393,4]
[327593913,1716246686820,-156.15078988,0.000393,4]
[327593914,1716246686830,-263.0103991,0.000393,4]
[327593915,1716246686839,-155.0,0.000393,4]
[327593916,1716246686849,-127551.80111332,0.000393,4]
[327593917,1716246686858,-155.0,0.000393,4]
[327593918,1716246686867,-156.26918012,0.000393,4]
[327593919,1716246686876,-236.70245155,0.000393,4]
[327593920,1716246686885,-155.74225539,0.000393,4]
[327593921,1716246686894,-196.37581851,0.000393,4]
[327593922,1716246686904,-622.01146866,0.000393,4]
[327593923,1716246686913,-155.96751744,0.000393,2]
[327593924,1716246686923,-1000.0,0.000393,2]
[327593925,1716246686932,-309.60510547,0.00039301,4]
[327593926,1716246686941,-2361.52496939,0.00039301,4]
[327593927,1716246686951,-4945.59745371,0.00039302,13]
[327593928,1716246686960,-25144.61566091,0.0003933,2]
[327593929,1716246686969,-528.8047,0.00039352,2]
[327593930,1716246686979,-150.0,0.00039355,2]
[327593931,1716246686989,-150.0,0.00039366,2]
[327593932,1716246686998,-300.0,0.00039383,2]
[327593933,1716246687007,-150.0,0.00039394,2]
[327593934,1716246687016,-1000.0,0.000394,7]
[327593935,1716246687025,-1022.43,0.00039409,2]
[327593936,1716246687034,-420.73,0.00039409,2]
[327593937,1716246687052,-150.0,0.00039409,2]
[327593938,1716246687074,-420.73,0.00039409,2]
[327593939,1716246687089,-150.0,0.00039409,2]
[327593940,1716246687109,-420.73,0.00039409,2]
[327593941,1716246687130,-150.0,0.00039409,2]
[327593942,1716246687148,-150.0,0.00039409,2]
[327593943,1716246687166,-162.05481209,0.00039414,2]
[327593944,1716246687182,-4945.59745371,0.00039426,13]
[327593945,1716246687198,-1532.67439124,0.0003945,4]
[327593946,1716246687216,-393.0610253,0.0003945,4]
[327593947,1716246687236,-260.52593921,0.0003945,4]
[327593948,1716246687249,-155.0,0.0003945,4]
[327593949,1716246687267,-256.04443483,0.00039451,4]
[327593950,1716246687289,-326.04893454,0.00039451,4]
[327593951,1716246687305,-286.67348432,0.00039451,4]
[327593952,1716246687319,-171.62702264,0.00039451,4]
[327593953,1716246687336,-196.37360908,0.00039451,4]
[327593954,1716246687354,-3079.97215406,0.00039451,4]
[327593955,1716246687371,-150.0,0.00039451,2]
[327593956,1716246687387,-179.17031599,0.00039452,7]
[327593957,1716246687402,-150.0,0.00039452,7]
[327593958,1716246687417,-213.96999947,0.00039452,5]
[327593959,1716246687432,-981.39,0.00039452,6]
[327593960,1716246687448,-500.0,0.00039452,6]
[327593961,1716246687463,-500.0,0.00039452,6]
[327593962,1716246687479,-613.09653155,0.00039452,6]
[327593963,1716246687494,-524.18,0.00039452,6]
[327593964,1716246687510,-500.0,0.00039452,6]
[327593965,1716246687525,-500.0,0.00039452,6]
[327593966,1716246687540,-500.0,0.00039452,6]
[327593967,1716246687555,-500.0,0.00039452,6]
[327593968,1716246687571,-500.0,0.00039452,6]
[327593969,1716246687586,-500.0,0.00039452,6]
[327593970,1716246687602,-500.0,0.00039452,6]
[327593971,1716246687619,-605.12,0.00039452,6]
[327593972,1716246687635,-500.0,0.00039452,6]
[327593973,1716246687650,-500.0,0.00039452,6]
[327593974,1716246687665,-500.0,0.00039452,6]
[327593975,1716246687680,-500.0,0.00039452,6]
[327593976,1716246687695,-993.47,0.00039452,6]
[327593977,1716246687711,-500.0,0.00039452,6]
[327593978,1716246687728,-500.0,0.00039452,6]
[327593979,1716246687743,-500.0,0.00039452,6]
[327593980,1716246687759,-500.0,0.00039452,6]
[327593981,1716246687775,-500.0,0.00039452,6]
[327593982,1716246687789,-328.12361487,0.00039452,6]
[327593983,1716246687805,-500.0,0.00039452,6]
[327593984,1716246687820,-644.94,0.00039452,6]
[327593985,1716246687836,-500.0,0.00039452,6]
[327593986,1716246687852,-500.0,0.00039452,6]
[327593987,1716246687868,-500.0,0.00039452,6]
[327593988,1716246687882,-500.0,0.00039452,6]
[327593989,1716246687898,-500.0,0.00039452,6]
[327593990,1716246687913,-500.0,0.00039452,6]
[327593991,1716246687928,-500.0,0.00039452,6]
[327593992,1716246687943,-500.0,0.00039452,6]
[327593993,1716246687957,-500.0,0.00039452,6]
[327593994,1716246687973,-500.0,0.00039452,6]
[327593995,1716246687989,-500.0,0.00039452,6]
[327593996,1716246688005,-706.15,0.00039452,6]
[327593997,1716246688022,-963.13,0.00039452,6]
[327593998,1716246688040,-500.0,0.00039452,6]
[327593999,1716246688056,-675.0,0.00039452,6]
[327594000,1716246688071,-500.0,0.00039452,6]
[327594001,1716246688093,-617.75,0.00039452,6]
[327594002,1716246688107,-1361.19,0.00039452,6]
[327594003,1716246688123,-392.14296799,0.00039452,6]
[327594004,1716246688137,-500.0,0.00039452,6]
[327594005,1716246688152,-500.0,0.00039452,6]
[327594006,1716246688168,-582.73,0.00039452,6]
[327594007,1716246688183,-500.0,0.00039452,6]
[327594008,1716246688199,-500.0,0.00039452,6]
[327594009,1716246688214,-500.0,0.00039452,6]
[327594010,1716246688229,-552.87198707,0.00039452,6]
[327594011,1716246688244,-500.0,0.00039452,6]
[327594012,1716246688259,-500.0,0.00039452,6]
[327594013,1716246688273,-500.0,0.00039452,6]
[327594014,1716246688292,-357.48579298,0.00039452,6]
[327594015,1716246688306,-500.0,0.00039452,6]
[327594016,1716246688321,-500.0,0.00039452,6]
[327594017,1716246688336,-500.0,0.00039452,6]
[327594018,1716246688351,-500.0,0.00039452,6]
[327594019,1716246688366,-500.0,0.00039452,6]
[327594020,1716246688381,-500.0,0.00039452,6]
[327594021,1716246688395,-500.0,0.00039452,6]
[327594022,1716246688410,-500.0,0.00039452,6]
[327594023,1716246688424,-652.99,0.00039452,6]
[327594024,1716246688439,-500.0,0.00039452,6]
[327594025,1716246688453,-500.0,0.00039452,6]
[327594026,1716246688467,-500.0,0.00039452,6]
[327594027,1716246688481,-596.88,0.00039452,6]
[327594028,1716246688495,-661.32,0.00039452,6]
[327594029,1716246688509,-1144.55,0.00039452,6]
[327594030,1716246688522,-500.0,0.00039452,6]
[327594031,1716246688536,-951.14,0.00039452,6]
[327594032,1716246688551,-500.0,0.00039452,6]
[327594033,1716246688566,-500.0,0.00039452,6]
[327594034,1716246688580,-500.0,0.00039452,6]
[327594035,1716246688594,-1432.71,0.00039452,6]
[327594036,1716246688608,-500.0,0.00039452,6]
[327594037,1716246688622,-500.0,0.00039452,6]
[327594038,1716246688636,-500.0,0.00039452,6]
[327594039,1716246688650,-933.1,0.00039452,6]
[327594040,1716246688663,-500.0,0.00039452,6]
[327594041,1716246688677,-1010.0,0.00039452,6]
[327594042,1716246688691,-500.0,0.00039452,6]
[327594043,1716246688706,-578.46,0.00039452,6]
[327594044,1716246688720,-620.21,0.00039452,6]
[327594045,1716246688735,-500.0,0.00039452,6]
[327594046,1716246688750,-500.0,0.00039452,6]
[327594047,1716246688764,-650.53,0.00039452,6]
[327594048,1716246688779,-500.0,0.00039452,6]
[327594049,1716246688793,-693.87,0.00039452,6]
[327594050,1716246688807,-500.0,0.00039452,6]
[327594051,1716246688821,-542.68,0.00039452,6]
[327594052,1716246688835,-637.78,0.00039452,6]
[327594053,1716246688849,-544.83,0.00039452,6]
[327594054,1716246688863,-991.09,0.00039452,6]
[327594055,1716246688878,-634.33166893,0.00039452,6]
[327594056,1716246688892,-500.0,0.00039452,6]
[327594057,1716246688906,-1494.37,0.00039452,6]
[327594058,1716246688920,-549.28044326,0.00039452,6]
[327594059,1716246688933,-500.0,0.00039452,6]
[327594060,1716246688946,-500.0,0.00039452,6]
[327594061,1716246688961,-882.87,0.00039452,6]
[327594062,1716246688974,-500.0,0.00039452,6]
[327594063,1716246688983,-1368.93,0.00039452,6]
[327594064,1716246688993,-500.0,0.00039452,6]
[327594065,1716246689002,-2000.0,0.00039452,30]
[327594066,1716246689012,-516.58195734,0.00039452,6]
[327594067,1716246689023,-500.0,0.00039452,6]
[327594068,1716246689032,-500.0,0.00039452,6]
[327594069,1716246689043,-500.0,0.00039452,6]
[327594070,1716246689052,-657.4,0.00039452,6]
[327594071,1716246689062,-500.0,0.00039452,6]
[327594072,1716246689412,-500.0,0.00039452,6]
[327594073,1716246689450,-500.0,0.00039452,6]
[327594074,1716246689471,-500.0,0.00039452,6]
[327594075,1716246689481,-1079.66,0.00039452,6]
[327594076,1716246689490,-818.11,0.00039452,6]
[327594077,1716246689499,-500.0,0.00039452,6]
[327594078,1716246689508,-519.94,0.00039452,6]
[327594079,1716246689518,-529.42,0.00039452,6]
[327594080,1716246689527,-500.0,0.00039452,6]
[327594081,1716246689536,-500.0,0.00039452,6]
[327594082,1716246689548,-500.0,0.00039452,6]
[327594083,1716246689557,-1104.38,0.00039452,6]
[327594084,1716246689570,-1385.47,0.00039452,6]
[327594085,1716246689579,-517.28,0.00039452,6]
[327594086,1716246689588,-889.2,0.00039452,6]
[327594087,1716246689597,-757.19,0.00039452,6]
[327594088,1716246689606,-500.0,0.00039452,6]
[327594089,1716246689616,-500.0,0.00039452,6]
[327594090,1716246689625,-761.68,0.00039452,6]
[327594091,1716246689634,-834.71,0.00039452,6]
[327594092,1716246689643,-1297.95,0.00039452,6]
[327594093,1716246689652,-500.0,0.00039452,6]
[327594094,1716246689662,-500.0,0.00039452,6]
[327594095,1716246689671,-500.0,0.00039452,6]
[327594096,1716246689680,-635.84,0.00039452,6]
[327594097,1716246689690,-636.12,0.00039452,6]
[327594098,1716246689700,-500.0,0.00039452,6]
[327594099,1716246689709,-500.0,0.00039452,6]
[327594100,1716246689719,-500.0,0.00039452,6]
[327594101,1716246689728,-500.0,0.00039452,6]
[327594102,1716246689738,-716.2,0.00039452,6]
[327594103,1716246689747,-627.92,0.00039452,6]
[327594104,1716246689756,-500.0,0.00039452,6]
[327594105,1716246689766,-709.67,0.00039452,6]
[327594106,1716246689775,-500.0,0.00039452,6]
[327594107,1716246689784,-1416.62,0.00039452,6]
[327594108,1716246689796,-1285.82,0.00039452,6]
[327594109,1716246689805,-1184.9,0.00039452,6]
[327594110,1716246689815,-602.76,0.00039452,6]
[327594111,1716246689824,-939.67,0.00039452,6]
[327594112,1716246689834,-500.0,0.00039452,6]
[327594113,1716246689843,-1140.97,0.00039452,6]
[327594114,1716246689853,-500.0,0.00039452,6]
[327594115,1716246689862,-500.0,0.00039452,6]
[327594116,1716246689872,-879.29,0.00039452,6]
[327594117,1716246689881,-1264.74,0.00039452,6]
[327594118,1716246689891,-1105.1,0.00039452,6]
[327594119,1716246689900,-854.23,0.00039452,6]
[327594120,1716246689911,-1092.97,0.00039452,6]
[327594121,1716246689920,-1545.89,0.00039452,6]
[327594122,1716246689930,-500.0,0.00039452,6]
[327594123,1716246689939,-584.91,0.00039452,6]
[327594124,1716246689949,-500.0,0.00039452,6]
[327594125,1716246689958,-500.0,0.00039452,6]
[327594126,1716246689968,-500.0,0.00039452,6]
[327594127,1716246689979,-500.0,0.00039452,6]
[327594128,1716246689988,-788.86,0.00039452,6]
[327594129,1716246689998,-500.0,0.00039452,6]
[327594130,1716246690008,-500.0,0.00039452,6]
[327594131,1716246690017,-500.0,0.00039452,6]
[327594132,1716246690027,-1492.34,0.00039452,6]
[327594133,1716246690036,-500.0,0.00039452,6]
[327594134,1716246690050,-1912.95,0.00039452,6]
[327594135,1716246690060,-500.0,0.00039452,6]
[327594136,1716246690069,-613.68,0.00039452,6]
[327594137,1716246690079,-612.57,0.00039452,6]
[327594138,1716246690089,-500.0,0.00039452,6]
[327594139,1716246690098,-592.41,0.00039452,6]
[327594140,1716246690108,-500.0,0.00039452,6]
[327594141,1716246690117,-500.0,0.00039452,6]
[327594142,1716246690126,-500.0,0.00039452,6]
[327594143,1716246690136,-926.58,0.00039452,6]
[327594144,1716246690146,-500.0,0.00039452,6]
[327594145,1716246690156,-2000.0,0.00039452,6]
[327594146,1716246690165,-500.0,0.00039452,6]
[327594147,1716246690175,-642.72,0.00039452,6]
[327594148,1716246690185,-500.0,0.00039452,6]
[327594149,1716246690194,-500.0,0.00039452,6]
[327594150,1716246690203,-671.44,0.00039452,6]
[327594151,1716246690213,-500.0,0.00039452,6]
[327594152,1716246690223,-500.0,0.00039452,6]
[327594153,1716246690232,-500.0,0.00039452,6]
[327594154,1716246690242,-658.12,0.00039452,6]
[327594155,1716246690251,-500.0,0.00039452,6]
[327594156,1716246690261,-500.0,0.00039452,6]
[327594157,1716246690271,-500.0,0.00039452,6]
[327594158,1716246690286,-679.55,0.00039452,6]
[327594159,1716246690298,-500.0,0.00039452,2]
[327594160,1716246690307,-500.0,0.00039452,6]
[327594161,1716246690318,-586.03,0.00039452,6]
[327594162,1716246690327,-548.26,0.00039452,6]
[327594163,1716246690336,-500.0,0.00039452,6]
[327594164,1716246690345,-500.0,0.00039452,6]
[327594165,1716246690356,-500.0,0.00039452,6]
[327594166,1716246690367,-1512.26,0.00039452,6]
[327594167,1716246690377,-922.44,0.00039452,6]
[327594168,1716246690386,-185.96059957,0.00039452,6]
[327594169,1716246690395,-500.0,0.00039452,6]
[327594170,1716246690404,-1487.5,0.00039452,6]
[327594171,1716246690413,-648.0,0.00039452,6]
[327594172,1716246690422,-1445.67,0.00039452,6]
[327594173,1716246690432,-500.0,0.00039452,2]
[327594174,1716246690441,-606.0,0.00039452,6]
[327594175,1716246690450,-1353.27,0.00039452,6]
[327594176,1716246690459,-500.0,0.00039452,6]
[327594177,1716246690468,-500.0,0.00039452,6]
[327594178,1716246690477,-2220.61,0.00039452,6]
[327594179,1716246690486,-869.36,0.00039452,6]
[327594180,1716246690496,-500.0,0.00039452,6]
[327594181,1716246690505,-500.0,0.00039452,6]
[327594182,1716246690514,-810.05,0.00039452,6]
[327594183,1716246690523,-543.21,0.00039452,6]
[327594184,1716246690532,-500.0,0.00039452,6]
[327594185,1716246690544,-275.70443566,0.00039452,6]